bitfinex/quotes_ETHUSD_20260129
["timestamp","ask_amount","ask_price","bid_price","bid_amount"]
[1769703669013,0.743,2820.3,2819.4,0.01066951]
[1769703670121,0.743,2820.6,2819.7,0.01066951]
[1769703670404,0.743,2820.6,2819.8,0.01066951]
[1769703670571,12.89723038,2820.8,2819.8,0.01066951]
[1769703670774,0.743,2820.7,2819.8,0.01066951]
[1769703671001,14.52655145,2820.7,2819.4,0.01066951]
[1769703671207,14.52655145,2820.7,2819.7,0.88661684]
[1769703671402,12.89723038,2820.7,2819.8,0.88658078]
[1769703671594,12.89723038,2820.7,2819.8,0.89725029]
[1769703671595,0.743,2820.7,2819.8,0.89725029]
[1769703674420,12.89723038,2821.1,2820.0,0.01066951]
[1769703674742,13.78341505,2821.1,2820.0,0.01066951]
[1769703675006,13.78341505,2821.1,2820.1,0.01066951]
[1769703675188,0.743,2821.0,2820.1,0.01066951]
[1769703675389,0.743,2821.0,2820.2,0.88646195]
[1769703675993,13.78341505,2821.1,2820.1,0.01066951]
[1769703675994,0.743,2820.9,2820.1,0.89714199]
[1769703676215,0.743,2820.9,2820.1,1.34146291]
[1769703676711,0.88617194,2821.2,2820.1,1.34146291]
[1769703676876,0.88610174,2821.4,2820.3,0.01066951]
[1769703677078,13.64023038,2821.3,2820.1,1.33081136]
[1769703677408,13.78337992,2821.2,2820.1,1.33081136]
[1769703677581,12.89723038,2821.2,2820.2,0.01066951]
[1769703677780,13.78338134,2821.2,2820.2,0.01066951]
[1769703678074,13.78338361,2821.2,2820.1,1.34148087]
[1769703678712,13.78338361,2821.2,2819.5,0.01266951]
[1769703678893,13.78338361,2821.2,2819.5,0.88866206]
[1769703679217,13.78338361,2821.2,2819.5,0.002]
[1769703681128,12.89723038,2821.0,2819.5,0.002]
[1769703681319,12.89723038,2821.0,2819.8,0.01066951]
[1769703681628,13.78350377,2820.8,2819.8,0.88658399]
[1769703681797,0.743,2820.7,2819.9,0.01066951]
[1769703682196,0.743,2820.7,2819.5,0.002]
[1769703682197,13.64023038,2820.7,2819.5,0.002]
[1769703682420,13.64023038,2820.7,2819.5,0.88868002]
[1769703682736,13.64023038,2820.7,2819.3,0.002]
[1769703682895,12.89723038,2820.5,2819.3,0.002]
[1769703683512,12.89723038,2820.3,2819.3,0.002]
[1769703684937,12.89723038,2820.1,2819.3,0.002]
[1769703685235,12.89723038,2819.9,2818.6,0.002]
[1769703685716,13.77750264,2819.7,2818.6,0.002]
[1769703686197,13.77750264,2819.7,2818.7,0.01066951]
[1769703686602,13.77750264,2819.7,2818.6,0.002]
[1769703687014,13.77750264,2819.7,2818.4,0.01266951]
[1769703687015,13.77750264,2819.5,2818.4,0.002]
[1769703687809,13.77750264,2819.3,2818.1,0.002]
[1769703687999,13.77750264,2819.1,2818.1,0.002]
[1769703689336,0.743,2819.0,2818.2,0.01066951]
[1769703689513,0.743,2819.0,2818.3,0.01066951]
[1769703689731,0.743,2818.9,2818.3,0.89771801]
[1769703690237,0.743,2818.9,2818.3,0.01066951]
[1769703690437,0.743,2818.8,2818.1,0.002]
[1769703691004,14.52050264,2818.8,2818.1,0.002]
[1769703691211,14.52050264,2818.8,2817.6,0.88926447]
[1769703691212,14.52050264,2818.8,2817.6,0.002]
[1769703691615,14.66443633,2818.7,2817.6,0.002]
[1769703692011,0.743,2818.6,2817.9,0.01066951]
[1769703692207,0.743,2818.6,2817.7,0.01066951]
[1769703692750,0.743,2818.5,2817.8,0.01066951]
[1769703692905,13.77750264,2819.2,2818.0,0.01066951]
[1769703693111,13.77750264,2819.2,2818.2,0.01066951]
[1769703693350,0.743,2819.1,2818.3,0.01066951]
[1769703693809,0.743,2819.1,2818.3,0.88705768]
[1769703694005,0.743,2819.1,2818.3,1.33167629]
[1769703694204,0.743,2819.1,2818.3,0.44461861]
[1769703694447,0.743,2819.0,2818.3,1.34234357]
[1769703694751,0.743,2819.0,2818.3,0.45528812]
[1769703694947,0.743,2819.0,2818.2,0.01066951]
[1769703695118,0.743,2819.0,2818.3,0.88705423]
[1769703695324,0.743,2819.0,2818.2,0.89773182]
[1769703695534,0.743,2819.0,2818.2,0.01066951]
[1769703695846,0.743,2819.0,2818.3,0.88705557]
[1769703696055,12.86751867,2819.5,2818.4,0.01066951]
[1769703696359,0.743,2819.4,2818.7,0.01066951]
[1769703697255,0.743,2819.4,2818.5,0.01066951]
[1769703697647,13.61051867,2819.4,2818.2,0.88707265]
[1769703697849,13.61051867,2819.4,2817.7,10.73858613]
[1769703697850,0.88674493,2819.3,2818.1,0.88710738]
[1769703698467,13.7542636,2819.3,2818.0,0.88713009]
[1769703698840,13.7542636,2819.3,2818.0,0.8977996]
[1769703699152,0.743,2819.2,2818.2,0.01066951]
[1769703699360,13.61051867,2819.2,2818.6,0.002]
[1769703700550,0.88680784,2819.1,2818.6,0.002]
[1769703701428,13.61051867,2819.2,2818.6,0.002]
[1769703701733,0.743,2819.1,2818.6,0.002]
[1769703703065,0.88674572,2819.3,2818.6,0.002]
[1769703703066,12.86751867,2819.5,2818.6,0.002]
[1769703703277,3.54660235,2819.7,2818.6,0.002]
[1769703703278,0.743,2819.4,2818.6,0.002]
[1769703704745,13.75412376,2819.8,2818.6,0.002]
[1769703704931,13.75416925,2819.6,2818.6,0.002]
[1769703708568,12.86751867,2819.4,2818.4,0.002]
[1769703709064,12.86751867,2819.2,2818.4,0.002]
[1769703709233,0.743,2819.1,2818.4,0.002]
[1769703709429,0.743,2819.0,2818.4,0.002]
[1769703710950,3.54638761,2819.8,2818.7,0.01066951]
[1769703711267,12.86751867,2820.7,2819.4,0.01066951]
[1769703711477,0.743,2820.6,2819.6,0.01066951]
[1769703711770,12.86751867,2820.7,2819.6,0.01066951]
[1769703711972,0.49682738,2820.8,2819.6,0.01066951]
[1769703712137,0.49682738,2820.8,2819.4,0.01066951]
[1769703712138,1.23982738,2820.8,2819.9,0.01066951]
[1769703712340,0.49682738,2820.8,2819.7,0.01066951]
[1769703712537,1.23982738,2820.8,2820.1,0.01066951]
[1769703712763,0.743,2820.8,2819.9,0.01066951]
[1769703713171,0.743,2820.8,2820.0,0.88652482]
[1769703713346,0.744,2820.9,2819.9,0.89720623]
[1769703715574,0.743,2821.3,2820.1,0.01066951]
[1769703716570,13.65978389,2821.9,2820.5,0.01066951]
[1769703716769,0.743,2821.8,2820.5,0.01066951]
[1769703716980,14.40278389,2821.8,2820.3,0.01066951]
[1769703717195,14.40278389,2821.8,2820.5,0.01066951]
[1769703717338,14.40278389,2821.8,2820.3,0.01066951]
[1769703717543,13.65978389,2821.6,2820.4,2.33745187]
[1769703717757,13.65978389,2821.6,2820.2,14.5]
[1769703718040,13.65978389,2821.6,2819.7,1.08579507]
[1769703718270,13.65978389,2821.6,2819.9,0.88655339]
[1769703718464,13.65978389,2821.6,2820.0,0.88652437]
[1769703718860,13.65978389,2821.6,2819.8,18.04633396]
[1769703718861,13.65978389,2821.6,2819.9,0.88655574]
[1769703719471,13.65978389,2821.4,2819.8,14.5]
[1769703719825,13.65978389,2821.4,2819.8,0.88658072]
[1769703719996,13.65978389,2821.2,2819.4,0.01066951]
[1769703720197,13.65978389,2821.2,2819.5,0.88668082]
[1769703720366,13.65978389,2821.2,2819.4,0.88669675]
[1769703720693,13.65978389,2821.2,2819.5,0.88668]
[1769703720895,13.65978389,2821.2,2819.7,0.88659683]
[1769703721063,13.65978389,2821.2,2819.6,0.01066951]
[1769703721265,13.65978389,2821.0,2819.3,0.88671429]
[1769703721578,13.65978389,2820.6,2819.2,3.55775887]
[1769703721896,3.54521927,2820.8,2819.2,3.55775887]
[1769703721897,0.743,2820.5,2819.4,0.01066951]
[1769703722081,0.743,2820.5,2819.0,0.88682069]
[1769703722082,14.40278389,2820.5,2819.0,0.88682069]
[1769703722271,14.40278389,2820.5,2819.2,0.88677169]
[1769703722473,14.40278389,2820.5,2819.0,0.44343487]
[1769703722668,14.40278389,2820.5,2819.1,0.88680669]
[1769703723000,14.40278389,2820.5,2819.0,0.88682757]
[1769703723171,14.40278389,2820.5,2819.0,0.88683715]
[1769703723367,14.40278389,2820.5,2818.9,0.01266951]
[1769703723566,0.743,2820.4,2819.4,0.88671348]
[1769703723894,13.65978389,2821.1,2819.5,0.01066951]
[1769703724103,3.54546531,2821.4,2819.9,0.01066951]
[1769703724104,0.001,2821.4,2819.9,0.01066951]
[1769703724303,0.001,2821.4,2820.6,0.01066951]
[1769703724492,0.001,2821.4,2820.7,0.01066951]
[1769703724671,0.001,2821.4,2820.8,0.01066951]
[1769703724973,0.88709083,2821.4,2820.6,14.5]
[1769703725173,0.88709083,2821.4,2819.7,0.01066951]
[1769703725402,0.001,2821.4,2820.5,0.01066951]
[1769703725767,0.001,2821.4,2820.7,0.8969734]
[1769703726202,0.001,2821.4,2820.5,0.01066951]
[1769703726402,0.001,2821.4,2820.4,3.54557955]
[1769703726610,0.001,2821.4,2820.7,0.88629164]
[1769703727198,0.001,2821.4,2820.7,0.88627794]
[1769703727379,0.001,2821.4,2820.5,1.81629442]
[1769703727590,0.001,2821.4,2820.6,0.88633513]
[1769703727784,0.001,2821.4,2820.6,0.88633553]
[1769703728003,0.001,2821.4,2820.6,0.62374182]
[1769703728205,0.001,2821.4,2820.5,2.69199215]
[1769703728482,0.001,2821.4,2820.5,2.69197849]
[1769703728696,0.001,2821.4,2820.5,2.69199225]
[1769703729496,0.001,2821.4,2820.5,1.80562491]
[1769703729696,0.001,2821.4,2820.5,2.69198659]
[1769703730206,0.001,2821.4,2820.6,0.26919866]
[1769703731519,0.001,2821.4,2820.6,0.16007025]
[1769703732596,0.001,2821.4,2820.5,1.80562491]
[1769703732786,13.66078389,2821.4,2820.5,1.80562491]
[1769703733117,13.66078389,2821.4,2820.5,0.88636612]
[1769703733626,13.66078389,2821.4,2820.5,0.88636413]
[1769703734891,13.66078389,2821.4,2820.4,0.89705195]
[1769703735191,14.54687665,2821.4,2820.2,0.88645741]
[1769703735391,14.54687665,2821.4,2820.7,0.002]
[1769703735603,13.66078389,2821.2,2820.0,0.88650591]
[1769703735799,13.66078389,2821.2,2819.7,0.01066951]
[1769703736022,13.65978389,2821.0,2819.8,0.88658378]
[1769703736225,14.40278389,2820.9,2819.8,0.88658378]
[1769703736389,15.28904999,2820.9,2819.6,0.88665058]
[1769703736786,15.28904999,2820.9,2819.5,0.88667366]
[1769703736992,3.54496791,2821.1,2819.8,0.01066951]
[1769703736993,0.743,2820.8,2819.8,0.01066951]
[1769703737188,0.743,2820.8,2819.5,0.89734317]
[1769703737490,13.65978389,2820.8,2819.5,0.88667366]
[1769703737823,0.88621038,2821.1,2819.6,0.45508517]
[1769703737824,14.40278389,2820.7,2819.6,0.45508517]
[1769703738396,15.28911096,2820.7,2819.6,1.34170501]
[1769703738800,14.40278389,2820.7,2819.6,1.34170501]
[1769703739106,15.28909336,2820.7,2819.6,0.44441566]
[1769703739298,15.28909336,2820.7,2819.6,0.88665002]
[1769703739623,15.28909336,2820.7,2819.6,0.88663641]
[1769703740519,15.28909336,2820.7,2819.5,18.04671627]
[1769703740520,15.28909336,2820.7,2819.4,0.88671348]
[1769703740727,15.28909336,2820.7,2819.5,0.01066951]
[1769703741626,15.28909336,2820.7,2819.4,15.38671348]
[1769703741826,13.65978389,2820.6,2819.5,0.01066951]
[1769703742202,0.743,2820.5,2819.7,0.01066951]
[1769703742392,0.743,2820.5,2819.6,0.88665058]
[1769703742897,0.743,2820.5,2819.7,0.01066951]
[1769703743524,0.743,2820.6,2819.6,0.88665058]
[1769703743703,0.743,2820.6,2819.7,0.4443982]
[1769703743899,14.54605728,2820.8,2819.7,0.4443982]
[1769703744100,13.65978389,2820.6,2819.4,0.88669962]
[1769703744403,13.65978389,2820.6,2819.4,0.88669292]
[1769703744598,13.65978389,2820.6,2819.3,3.55960009]
[1769703744599,14.54615155,2820.5,2819.3,0.002]
[1769703744802,13.65978389,2820.3,2819.3,0.002]
[1769703745137,13.65978389,2820.2,2818.9,0.002]
[1769703746508,12.99886675,2820.0,2818.9,0.002]
[1769703746726,12.99886675,2819.8,2818.9,0.002]
[1769703746930,12.99886675,2819.6,2818.9,0.002]
[1769703747096,12.99886675,2819.6,2818.6,0.002]
[1769703747302,12.99886675,2819.6,2817.6,0.002]
[1769703747303,12.99886675,2819.2,2817.6,0.002]
[1769703747598,12.99886675,2819.0,2817.7,0.88722544]
[1769703748814,13.88573751,2818.9,2817.6,0.88927995]
[1769703749328,0.743,2818.8,2818.1,0.002]
[1769703749633,13.74186675,2818.8,2818.1,0.002]
[1769703749879,13.74186675,2818.8,2817.6,0.002]
[1769703750804,12.99886675,2818.6,2817.6,0.002]
[1769703753002,12.68918433,2818.4,2817.6,0.002]
[1769703754156,12.68918433,2818.4,2816.6,3.56102321]
[1769703754157,0.1024,2816.8,2815.6,0.01066951]
[1769703754433,0.1024,2816.5,2815.4,0.01066951]
[1769703754604,0.1024,2816.5,2815.6,0.01066951]
[1769703754803,0.743,2816.4,2815.6,0.01066951]
[1769703755004,1.63066866,2816.4,2815.0,0.01066951]
[1769703755237,12.79158433,2816.3,2814.0,0.89906728]
[1769703755437,12.79158433,2816.1,2814.1,0.01066951]
[1769703755770,12.79158433,2815.5,2813.7,0.01066951]
[1769703756047,12.79158433,2815.5,2813.5,0.01066951]
[1769703756048,12.79158433,2815.3,2813.5,0.01066951]
[1769703756554,0.743,2815.2,2814.2,0.01066951]
[1769703756743,0.743,2815.2,2813.9,0.01066951]
[1769703756945,0.743,2815.2,2814.1,0.01066951]
[1769703756946,0.88806791,2815.1,2814.1,0.01066951]
[1769703757153,0.88787868,2815.7,2814.3,0.01066951]
[1769703757464,0.1024,2815.5,2814.3,0.01066951]
[1769703757832,0.1024,2815.5,2814.4,0.01066951]
[1769703758264,0.1024,2815.5,2814.3,0.01066951]
[1769703758433,0.1024,2815.5,2814.1,0.01066951]
[1769703758629,0.743,2815.4,2814.3,0.01066951]
[1769703758830,0.88800483,2815.3,2814.1,0.01066951]
[1769703759031,0.88800483,2815.3,2813.9,0.01066951]
[1769703759360,0.88800483,2815.3,2814.1,0.01066951]
[1769703760059,0.88800483,2815.3,2813.9,0.01066951]
[1769703760262,0.88800483,2815.3,2814.1,0.01066951]
[1769703760635,0.744,2815.2,2814.1,0.01066951]
[1769703760961,0.88906791,2815.1,2814.1,0.01066951]
[1769703761944,0.001,2815.1,2814.4,0.01066951]
[1769703763331,0.001,2815.1,2814.1,0.01066951]
[1769703763531,0.001,2815.1,2814.3,0.01066951]
[1769703764442,0.744,2815.4,2814.0,0.89908063]
[1769703764745,0.744,2815.4,2813.7,0.002]
[1769703764746,12.79158433,2815.3,2813.7,0.002]
[1769703765467,12.79158433,2815.1,2813.7,0.002]
[1769703765871,12.68918433,2814.9,2813.7,0.002]
[1769703766654,0.744,2814.8,2813.7,0.002]
[1769703766850,0.88803637,2815.2,2813.7,0.002]
[1769703767062,0.744,2815.1,2813.8,0.01066951]
[1769703767263,3.65421319,2815.5,2814.2,0.01066951]
[1769703767471,0.744,2815.1,2814.2,0.01066951]
[1769703767665,0.744,2815.1,2814.0,0.01066951]
[1769703767876,12.9640536,2814.7,2812.5,0.01066951]
[1769703768050,0.1024,2814.4,2812.3,16.38963407]
[1769703768250,13.0664536,2814.4,2812.8,0.01066951]
[1769703768470,13.0664536,2814.4,2812.1,0.01066951]
[1769703768471,13.0664536,2813.8,2812.1,0.01066951]
[1769703768651,13.0664536,2813.8,2812.6,0.01066951]
[1769703768855,13.0664536,2813.8,2812.4,0.01066951]
[1769703769153,0.1024,2813.8,2813.0,0.01066951]
[1769703769356,0.1024,2813.8,2812.8,0.01066951]
[1769703769678,0.88850979,2813.7,2812.8,0.01066951]
[1769703769870,0.88850979,2813.7,2812.9,0.01066951]
[1769703770573,0.88850979,2813.7,2812.8,0.01066951]
[1769703770945,0.88850979,2813.7,2812.7,0.01066951]
[1769703771143,0.88850979,2813.7,2812.3,0.01066951]
[1769703771348,0.88850979,2813.7,2812.5,0.01066951]
[1769703771571,0.88850979,2813.7,2812.7,0.01066951]
[1769703771875,3.55403916,2813.8,2812.7,0.01066951]
[1769703772249,3.55403916,2813.8,2812.3,0.01066951]
[1769703772450,12.9640536,2813.7,2812.1,0.01066951]
[1769703772674,12.9640536,2813.7,2812.3,0.01066951]
[1769703772880,3.55403916,2813.8,2812.8,0.01066951]
[1769703773182,0.744,2813.7,2812.7,0.01066951]
[1769703773961,0.88854137,2813.6,2812.7,0.01066951]
[1769703774358,0.071,2823.8,2813.1,0.01066951]
[1769703774359,0.88838349,2814.1,2813.1,0.01066951]
[1769703774573,0.88838349,2814.1,2812.7,0.89947985]
[1769703774574,0.88838349,2814.1,2812.7,0.01066951]
[1769703774776,0.88838349,2814.1,2812.9,0.01066951]
[1769703774954,0.88838349,2814.1,2813.0,0.01066951]
[1769703775279,0.88838349,2814.1,2812.8,0.01066951]
[1769703775482,14.6141149,2814.1,2812.6,0.002]
[1769703776178,13.82813141,2814.0,2812.6,0.002]
[1769703776381,13.82813141,2814.0,2812.6,0.01266951]
[1769703776580,13.82813141,2814.0,2812.4,0.002]
[1769703776581,9.49553175,2813.7,2812.4,0.002]
[1769703776768,13.72573141,2813.3,2811.7,0.01066951]
[1769703777081,0.744,2813.2,2811.9,0.01066951]
[1769703777255,0.744,2813.2,2812.0,0.01066951]
[1769703777450,0.744,2813.2,2811.7,0.01066951]
[1769703777451,0.744,2813.2,2811.9,0.01066951]
[1769703777781,14.46973141,2813.2,2811.7,0.01066951]
[1769703778092,0.88869929,2813.1,2812.0,0.01066951]
[1769703778683,0.88869929,2813.1,2811.8,0.01266951]
[1769703778889,0.744,2813.0,2812.0,0.01066951]
[1769703779084,0.744,2813.0,2811.8,0.01266951]
[1769703779393,0.744,2813.0,2811.8,0.002]
[1769703779595,14.46973141,2813.0,2811.6,0.002]
[1769703779798,13.72573141,2812.6,2811.2,0.002]
[1769703779956,0.88898371,2812.2,2811.2,0.002]
[1769703780157,0.88898371,2812.2,2811.3,0.0106697]
[1769703780362,0.88898371,2812.2,2811.2,0.002]
[1769703780363,0.744,2812.1,2811.2,0.002]
[1769703780767,0.88898371,2812.2,2811.2,0.002]
[1769703780768,0.88898371,2812.2,2811.3,0.0106697]
[1769703781004,0.744,2812.1,2811.3,0.0106697]
[1769703781469,0.744,2812.1,2811.2,0.002]
[1769703781857,0.744,2812.1,2811.3,0.0106697]
[1769703782091,0.88904694,2812.0,2811.2,0.002]
[1769703782585,13.25968711,2813.0,2811.7,0.0106697]
[1769703782586,0.88879408,2812.8,2811.7,0.0106697]
[1769703783096,0.745,2812.7,2811.9,0.0106697]
[1769703783396,0.1024,2812.6,2811.8,0.0106697]
[1769703783696,0.1024,2812.6,2811.6,0.0106697]
[1769703783878,1.63379408,2812.8,2811.9,0.0106697]
[1769703784082,13.72573141,2813.1,2812.3,0.0106697]
[1769703784083,0.88869929,2813.1,2812.3,0.0106697]
[1769703784268,0.1024,2813.0,2811.9,0.0106697]
[1769703784657,13.72573141,2812.9,2811.4,0.0106697]
[1769703784960,0.88869929,2813.1,2811.2,0.0126697]
[1769703784961,13.82813141,2812.7,2811.2,0.0126697]
[1769703785156,13.82813141,2812.7,2811.3,0.0106697]
[1769703785356,0.1024,2812.4,2811.4,0.002]
[1769703785560,0.745,2812.3,2811.4,0.002]
[1769703786294,0.88898371,2812.2,2811.5,0.0106697]
[1769703786503,0.88892049,2812.4,2811.5,0.0106697]
[1769703786791,0.88876248,2812.9,2811.8,0.0106697]
[1769703786992,0.745,2812.8,2811.8,0.0106697]
[1769703787692,0.1024,2812.7,2811.7,0.0106697]
[1769703787991,0.1024,2812.7,2811.5,0.0106697]
[1769703788162,0.88885728,2812.6,2811.7,0.0106697]
[1769703788368,0.88885728,2812.6,2811.5,0.0106697]
[1769703788782,0.88885728,2812.6,2811.7,0.0106697]
[1769703788965,0.88885728,2812.6,2811.5,0.0106697]
[1769703789170,0.88885728,2812.6,2811.6,0.0106697]
[1769703789391,0.88885728,2812.6,2811.4,0.0106697]
[1769703789691,0.88885728,2812.6,2811.6,0.0106697]
[1769703789913,0.88885728,2812.6,2811.4,0.0106697]
[1769703789914,0.88885728,2812.6,2811.7,0.0106697]
[1769703790196,0.88885728,2812.6,2811.4,0.0106697]
[1769703790496,0.88885728,2812.6,2811.8,0.0106697]
[1769703790697,14.61458869,2812.6,2811.3,0.0106697]
[1769703791196,14.61458869,2812.6,2811.5,0.0106697]
[1769703792095,14.61458869,2812.6,2811.3,0.0106697]
[1769703792294,14.61458869,2812.6,2811.5,0.0106697]
[1769703792596,0.88885728,2812.6,2811.9,0.0106697]
[1769703793093,0.88885728,2812.6,2811.8,0.0106697]
[1769703793299,0.88885728,2812.6,2811.5,0.0106697]
[1769703793594,0.88885728,2812.6,2811.3,0.0106697]
[1769703793987,0.88885728,2812.6,2811.5,0.0106697]
[1769703794176,0.88885728,2812.6,2811.6,0.0106697]
[1769703794576,3.55542914,2812.7,2811.7,0.0106697]
[1769703794976,3.55542914,2812.7,2811.5,0.0106697]
[1769703795279,0.745,2813.0,2811.8,0.0106697]
[1769703795280,0.88876248,2813.0,2811.8,0.0106697]
[1769703795479,0.8474,2812.9,2811.7,0.0106697]
[1769703795707,14.57313141,2812.9,2811.5,0.0106697]
[1769703795905,14.57313141,2812.9,2811.6,0.0106697]
[1769703796110,14.57313141,2812.9,2811.5,0.0106697]
[1769703796607,0.88879408,2812.8,2811.5,0.0106697]
[1769703796814,14.61452549,2812.8,2811.5,0.0106697]
[1769703797022,0.88879408,2812.8,2811.9,0.0106697]
[1769703797182,0.88879408,2812.8,2812.0,0.0106697]
[1769703797577,0.001,2812.4,2811.8,0.0106697]
[1769703797885,0.001,2812.4,2812.0,0.0106697]
[1769703798282,0.1024,2813.1,2812.2,0.0106697]
[1769703798489,0.1024,2813.1,2812.1,0.0106697]
[1769703798787,0.88873089,2813.0,2811.9,0.0106697]
[1769703799413,0.88873089,2813.0,2812.1,0.0106697]
[1769703799787,0.88873089,2813.0,2811.9,0.0106697]
[1769703799986,0.88873089,2813.0,2811.8,0.0106697]
[1769703800181,0.88873089,2813.0,2812.0,0.0106697]
[1769703800401,0.88873089,2813.0,2812.2,0.0106697]
[1769703801386,0.88873089,2813.0,2812.0,0.0106697]
[1769703801586,0.88873089,2813.0,2812.2,0.0106697]
[1769703801789,0.88873089,2813.0,2812.0,0.0106697]
[1769703801987,0.88873089,2813.0,2811.2,0.002]
[1769703801988,13.82813141,2812.8,2811.2,0.002]
[1769703802215,0.1024,2812.6,2811.3,0.0106697]
[1769703802399,0.1024,2812.6,2811.5,0.0106697]
[1769703802587,0.88873089,2813.0,2811.8,0.0106697]
[1769703802794,0.745,2812.8,2812.0,0.0106697]
[1769703803018,0.745,2812.8,2811.8,0.0106697]
[1769703803621,0.745,2812.8,2811.6,0.0106697]
[1769703804613,13.82813141,2812.7,2811.3,0.0106697]
[1769703804784,13.82813141,2812.7,2811.2,0.002]
[1769703804785,0.1024,2812.3,2811.2,0.002]
[1769703805127,13.82813141,2812.1,2810.7,0.002]
[1769703805291,13.82813141,2812.1,2810.8,0.0106697]
[1769703805487,13.56056947,2812.0,2810.7,0.002]
[1769703805702,0.745,2811.9,2810.7,0.002]
[1769703805908,0.745,2811.9,2810.7,0.0106697]
[1769703806307,13.56056947,2811.8,2810.1,13.80306414]
[1769703806510,13.56056947,2811.8,2810.4,0.01067121]
[1769703806710,0.8891418,2811.7,2810.6,0.01067121]
[1769703806909,4.30131498,2811.9,2810.6,0.01067121]
[1769703806910,0.745,2811.9,2810.8,0.01067121]
[1769703807091,0.745,2811.9,2811.0,0.01067121]
[1769703807698,0.745,2811.9,2810.8,0.01067121]
[1769703807894,0.745,2811.9,2811.0,0.01067121]
[1769703808100,0.88901532,2812.1,2811.4,0.01067121]
[1769703808492,0.1024,2812.4,2811.4,0.01067121]
[1769703808695,13.45816947,2812.7,2811.6,0.01067121]
[1769703808898,0.88879408,2812.8,2812.0,0.01067121]
[1769703809102,14.34696355,2812.8,2811.6,0.01067121]
[1769703809300,14.34696355,2812.8,2811.8,0.01067121]
[1769703809301,0.1024,2812.7,2811.8,0.01067121]
[1769703809803,0.1024,2812.7,2811.5,0.01067121]
[1769703809999,0.88979408,2812.8,2811.7,0.01067121]
[1769703810199,1.63479408,2812.8,2811.9,0.01067121]
[1769703810443,1.63479408,2812.8,2812.1,0.01067121]
[1769703811017,1.63479408,2812.8,2811.7,0.01067121]
[1769703811303,15.09296355,2812.8,2811.4,0.002]
[1769703811528,15.09296355,2812.8,2811.7,0.01067121]
[1769703811903,15.09296355,2812.8,2811.4,0.002]
[1769703812221,15.09296355,2812.8,2811.4,0.01267121]
[1769703812602,15.09296355,2812.8,2811.6,0.01067121]
[1769703812802,15.09296355,2812.8,2811.4,0.01267121]
[1769703813110,13.95693224,2812.4,2811.4,0.002]
[1769703815037,0.8889521,2812.3,2811.4,0.002]
[1769703815242,14.84588434,2812.3,2811.4,0.002]
[1769703815428,0.8889521,2812.3,2811.4,0.002]
[1769703815807,3.746,2812.2,2811.4,0.002]
[1769703816030,0.8889521,2812.3,2811.4,0.002]
[1769703818256,0.88885728,2812.6,2811.7,0.01067121]
[1769703818461,0.88885728,2812.6,2811.8,0.01067121]
[1769703819314,0.88884589,2812.7,2811.8,0.01067121]
[1769703819526,0.88979986,2812.8,2812.0,0.01067121]
[1769703820050,0.88979986,2812.8,2811.1,0.002]
[1769703820051,14.05933224,2812.7,2811.1,0.002]
[1769703820262,0.1034,2812.8,2811.7,0.01067121]
[1769703820623,0.1034,2812.8,2811.8,0.01067121]
[1769703820624,0.001,2812.8,2811.8,0.01067121]
[1769703820861,0.001,2812.8,2812.0,0.01067121]
[1769703821417,0.001,2812.8,2811.6,0.01067121]
[1769703822052,0.001,2812.8,2811.7,14.5]
[1769703822255,0.001,2812.8,2811.6,0.01067121]
[1769703822442,0.001,2812.5,2811.6,0.01067121]
[1769703822823,0.001,2812.5,2811.8,0.01067121]
[1769703823024,0.001,2812.5,2811.6,0.01067121]
[1769703823254,0.001,2812.5,2811.7,1.45106712]
[1769703823456,0.001,2812.5,2811.6,0.01067121]
[1769703823652,0.001,2812.5,2812.0,0.01067121]
[1769703825548,0.001,2812.5,2811.8,0.01067121]
[1769703825729,0.001,2812.5,2812.0,0.01067121]
[1769703826143,0.001,2812.5,2812.2,0.01067121]
[1769703827051,0.001,2812.5,2812.0,0.01067121]
[1769703827865,0.001,2812.5,2811.8,0.01067121]
[1769703828328,0.001,2812.5,2811.4,0.89122174]
[1769703828532,0.001,2812.5,2811.6,0.01067121]
[1769703828851,0.001,2812.5,2811.8,0.01067121]
[1769703829327,0.001,2812.5,2812.0,0.01067121]
[1769703830831,0.001,2812.5,2811.8,0.01067121]
[1769703832553,0.001,2812.5,2811.6,0.01067121]
[1769703832727,0.001,2812.5,2811.8,0.01067121]
[1769703833133,0.001,2812.5,2811.6,0.01067121]
[1769703833337,13.95793224,2812.5,2811.5,0.44589465]
[1769703833646,13.95793224,2812.5,2811.4,0.002]
[1769703834036,0.001,2812.5,2811.7,0.01067121]
[1769703834235,0.001,2812.3,2811.9,0.01067121]
[1769703834442,0.001,2812.3,2811.8,0.01067121]
[1769703835650,0.001,2812.3,2811.5,0.01067121]
[1769703835972,0.001,2812.3,2811.5,1.48118619]
[1769703836271,0.001,2812.3,2811.5,1.47051498]
[1769703836452,0.001,2812.3,2811.4,0.01267121]
[1769703836849,0.001,2812.3,2811.4,0.002]
[1769703837572,13.20814536,2812.3,2811.4,0.002]
[1769703838338,13.20714536,2811.9,2811.1,0.002]
[1769703838566,13.95214536,2811.9,2811.1,0.002]
[1769703838738,0.88911017,2811.8,2811.1,0.002]
[1769703839768,14.09625553,2811.8,2810.4,0.01067121]
[1769703839991,13.30954536,2811.7,2810.1,0.002]
[1769703840278,13.20714536,2811.4,2810.1,0.002]
[1769703840470,13.20714536,2811.3,2810.1,0.002]
[1769703840639,0.88911017,2811.8,2810.6,0.01067273]
[1769703840967,3.55644071,2811.9,2810.4,0.01067273]
[1769703840968,13.30954536,2811.9,2810.4,0.01067273]
[1769703841168,13.30954536,2811.9,2810.2,0.01067273]
[1769703841373,13.30954536,2811.7,2810.6,0.01067273]
[1769703841572,0.1024,2811.7,2810.6,0.01067273]
[1769703841869,13.30954536,2811.7,2810.1,0.002]
[1769703842090,13.30954536,2811.7,2810.2,0.90028464]
[1769703842238,0.8474,2811.9,2810.7,0.01067273]
[1769703842442,14.05454536,2811.9,2810.4,13.82938329]
[1769703842644,14.05454536,2811.9,2810.6,0.01067273]
[1769703842846,14.09625553,2811.8,2810.5,1.47189507]
[1769703843055,14.09625553,2811.8,2810.1,0.89163737]
[1769703843056,14.09625553,2811.8,2810.2,0.01067273]
[1769703843256,14.09625553,2811.8,2810.4,0.01067273]